lending/lending_fUSD_20240603
["ID","MTS","AMOUNT","RATE_DAILY","PERIOD"]
[328469195,1717423838733,-500.0,0.0003041,4]
[328469196,1717423838742,-500.0,0.0003041,4]
[328469197,1717423838751,-500.0,0.0003041,4]
[328469198,1717423838761,-500.0,0.0003041,4]
[328469199,1717423838772,-500.0,0.0003041,4]
[328469200,1717423838782,-500.0,0.0003041,4]
[328469201,1717423838791,-500.0,0.0003041,4]
[328469202,1717423838802,-618.53,0.0003041,4]
[328469203,1717423838812,-598.01,0.0003041,4]
[328469204,1717423838822,-4233.41,0.0003041,4]
[328469205,1717423838833,-500.0,0.0003041,4]
[328469206,1717423838847,-500.0,0.0003041,4]
[328469207,1717423838856,-500.0,0.0003041,4]
[328469208,1717423838866,-500.0,0.0003041,4]
[328469209,1717423838875,-500.0,0.0003041,4]
[328469210,1717423838887,-500.0,0.0003041,4]
[328469211,1717423838897,-500.0,0.0003041,4]
[328469212,1717423838907,-500.0,0.0003041,4]
[328469213,1717423838920,-500.0,0.0003041,4]
[328469214,1717423838930,-500.0,0.0003041,4]
[328469215,1717423838940,-500.0,0.0003041,4]
[328469216,1717423838950,-500.0,0.0003041,4]
[328469217,1717423838959,-500.0,0.0003041,4]
[328469218,1717423838969,-418.1,0.0003041,4]
[328469219,1717423838978,-523.72,0.0003041,4]
[328469220,1717423838987,-500.0,0.0003041,4]
[328469221,1717423838997,-172.83,0.00030444,2]
[328469222,1717423839007,-174.9857197,0.00030476,7]
[328469223,1717423839016,-1000.0,0.000305,2]
[328469224,1717423839026,-2138.2652,0.0003051,2]
[328469225,1717423839036,-2042.88181228,0.00030511,7]
[328469226,1717423839046,-150.79906213,0.00030527,7]
[328469227,1717423839056,-157.44336949,0.0003056,7]
[328469228,1717423839066,-578.18174443,0.00030583,4]
[328469229,1717423839076,-48613.69201959,0.00030583,2]
[328469230,1717423839086,-803.50130827,0.00030583,4]
[328469231,1717423839096,-1390.42,0.00030584,2]
[328469232,1717423839111,-161.9071,0.00030584,2]
[328469233,1717423839121,-150.79906213,0.00030585,7]
[328469234,1717423839133,-10281.0,0.00030619,2]
[328469235,1717423839142,-150.79906213,0.00030666,7]
[328469236,1717423839151,-500.0,0.00030681,4]
[328469237,1717423839161,-218.72,0.00030682,4]
[328469238,1717423839170,-346.30032205,0.00030682,4]
[328469239,1717423839181,-500.0,0.00030682,4]
[328469240,1717423839191,-500.0,0.00030682,4]
[328469241,1717423839200,-500.0,0.00030682,4]
[328469242,1717423839210,-507.88357536,0.00030682,4]
[328469243,1717423839219,-500.0,0.00030682,4]
[328469244,1717423839229,-500.0,0.00030682,4]
[328469245,1717423839241,-500.0,0.00030682,4]
[328469246,1717423839251,-500.0,0.00030682,4]
[328469247,1717423839260,-523.72,0.00030682,4]
[328469248,1717423839270,-500.0,0.00030682,4]
[328469249,1717423839280,-500.0,0.00030682,4]
[328469251,1717423839290,-500.0,0.00030682,4]
[328469252,1717423839299,-500.0,0.00030682,4]
[328469254,1717423839310,-500.0,0.00030682,4]
[328469256,1717423839320,-500.0,0.00030682,4]
[328469258,1717423839330,-216.21273135,0.00030682,4]
[328469260,1717423839339,-500.0,0.00030682,4]
[328469262,1717423839349,-500.0,0.00030682,4]
[328469264,1717423839360,-500.0,0.00030682,4]
[328469266,1717423839370,-500.0,0.00030682,4]
[328469268,1717423839380,-500.0,0.00030682,4]
[328469270,1717423839390,-512.46504334,0.00030682,4]
[328469271,1717423839399,-500.0,0.00030682,4]
[328469272,1717423839410,-513.63215311,0.00030682,4]
[328469273,1717423839420,-500.0,0.00030682,4]
[328469274,1717423839430,-500.0,0.00030682,4]
[328469275,1717423839439,-500.0,0.00030682,4]
[328469276,1717423839449,-500.0,0.00030682,4]
[328469277,1717423839459,-500.0,0.00030682,4]
[328469278,1717423839468,-500.0,0.00030682,4]
[328469279,1717423839478,-516.36594438,0.00030682,4]
[328469280,1717423839488,-500.0,0.00030682,4]
[328469281,1717423839497,-500.0,0.00030682,4]
[328469282,1717423839507,-500.0,0.00030682,4]
[328469283,1717423839516,-491.44575449,0.00030682,4]
[328469284,1717423839526,-757.65,0.00030682,4]
[328469285,1717423839535,-500.0,0.00030682,4]
[328469286,1717423839544,-500.0,0.00030682,4]
[328469287,1717423839554,-874.8,0.00030682,4]
[328469289,1717423839563,-500.0,0.00030682,4]
[328469290,1717423839572,-500.0,0.00030682,4]
[328469292,1717423839582,-840.86,0.00030682,4]
[328469294,1717423839591,-500.0,0.00030682,4]
[328469296,1717423839600,-500.0,0.00030682,4]
[328469298,1717423839609,-500.0,0.00030682,4]
[328469300,1717423839619,-500.0,0.00030682,4]
[328469302,1717423839629,-500.0,0.00030682,4]
[328469304,1717423839639,-500.0,0.00030682,4]
[328469306,1717423839648,-500.0,0.00030682,4]
[328469308,1717423839657,-500.0,0.00030682,4]
[328469309,1717423839666,-640.78043934,0.00030682,4]
[328469311,1717423839675,-500.0,0.00030682,4]
[328469313,1717423839685,-500.0,0.00030682,4]
[328469315,1717423839695,-500.0,0.00030682,4]
[328469317,1717423839705,-500.0,0.00030682,4]
[328469319,1717423839714,-511.22748906,0.00030682,4]
[328469320,1717423839724,-509.75184681,0.00030682,4]
[328469321,1717423839733,-500.0,0.00030682,4]
[328469322,1717423839742,-500.0,0.00030682,4]
[328469323,1717423839752,-500.0,0.00030682,4]
[328469324,1717423839761,-500.0,0.00030682,4]
[328469325,1717423839770,-500.0,0.00030682,4]
[328469326,1717423839780,-500.0,0.00030682,4]
[328469327,1717423839789,-500.0,0.00030682,4]
[328469328,1717423839799,-500.0,0.00030682,4]
[328469329,1717423839808,-500.0,0.00030682,4]
[328469330,1717423839817,-500.0,0.00030682,4]
[328469331,1717423839826,-613.73,0.00030682,4]
[328469332,1717423839842,-500.0,0.00030682,4]
[328469333,1717423839851,-171.1074898,0.00030682,4]
[328469334,1717423839861,-500.0,0.00030682,4]
[328469335,1717423839869,-500.0,0.00030682,4]
[328469336,1717423839880,-500.0,0.00030682,4]
[328469337,1717423839889,-500.0,0.00030682,4]
[328469338,1717423839898,-588.11,0.00030682,4]
[328469339,1717423839908,-500.0,0.00030682,4]
[328469340,1717423839917,-500.0,0.00030682,4]
[328469341,1717423839926,-500.0,0.00030682,4]
[328469342,1717423839935,-516.13,0.00030682,4]
[328469343,1717423839944,-529.46,0.00030682,4]
[328469344,1717423839953,-500.0,0.00030682,4]
[328469345,1717423839963,-500.0,0.00030682,4]
[328469346,1717423839972,-500.0,0.00030682,4]
[328469347,1717423839982,-500.0,0.00030682,4]
[328469348,1717423839991,-500.0,0.00030682,4]
[328469349,1717423840000,-606.72,0.00030682,4]
[328469350,1717423840010,-500.0,0.00030682,4]
[328469351,1717423840019,-519.1,0.00030682,4]
[328469352,1717423840028,-500.0,0.00030682,4]
[328469353,1717423840038,-419.06624257,0.00030682,4]
[328469354,1717423840048,-4664.69,0.00030682,4]
[328469355,1717423840057,-566.29025233,0.00030682,4]
[328469356,1717423840066,-509.00428234,0.00030682,4]
[328469357,1717423840076,-877.52,0.00030682,4]
[328469358,1717423840085,-500.0,0.00030682,4]
[328469359,1717423840094,-500.0,0.00030682,4]
[328469360,1717423840104,-881.93,0.00030682,4]
[328469361,1717423840114,-500.0,0.00030682,4]
[328469362,1717423840123,-512.78,0.00030682,4]
[328469363,1717423840132,-500.0,0.00030682,4]
[328469364,1717423840142,-508.26006204,0.00030682,4]
[328469365,1717423840151,-500.0,0.00030682,4]
[328469366,1717423840160,-500.0,0.00030682,4]
[328469367,1717423840170,-500.0,0.00030682,4]
[328469368,1717423840179,-500.0,0.00030682,4]
[328469369,1717423840188,-508.53247514,0.00030682,4]
[328469370,1717423840198,-507.24822361,0.00030682,4]
[328469371,1717423840207,-500.0,0.00030682,4]
[328469372,1717423840217,-504.37,0.00030682,4]
[328469373,1717423840226,-2125.65,0.00030682,4]
[328469374,1717423840235,-500.0,0.00030682,4]
[328469375,1717423840245,-542.95,0.00030682,4]
[328469376,1717423840255,-500.0,0.00030682,4]
[328469377,1717423840264,-500.0,0.00030682,4]
[328469378,1717423840273,-500.0,0.00030682,4]
[328469379,1717423840282,-500.0,0.00030682,4]
[328469380,1717423840291,-530.25934769,0.00030682,4]
[328469381,1717423840301,-630.75,0.00030682,4]
[328469382,1717423840309,-525.61,0.00030682,4]
[328469383,1717423840318,-500.0,0.00030682,4]
[328469384,1717423840328,-500.0,0.00030682,4]
[328469385,1717423840337,-513.65,0.00030682,4]
[328469386,1717423840346,-536.34803915,0.00030682,4]
[328469389,1717423840458,-500.0,0.00030682,4]
[328469392,1717423840467,-500.0,0.00030682,4]
[328469394,1717423840477,-500.0,0.00030682,4]
[328469396,1717423840487,-500.0,0.00030682,4]
[328469398,1717423840496,-500.0,0.00030682,4]
[328469400,1717423840507,-500.0,0.00030682,4]
[328469402,1717423840517,-500.0,0.00030682,4]
[328469404,1717423840526,-500.0,0.00030682,4]
[328469406,1717423840535,-500.0,0.00030682,4]
[328469408,1717423840544,-500.0,0.00030682,4]
[328469410,1717423840554,-500.0,0.00030682,4]
[328469412,1717423840564,-784.39,0.00030682,4]
[328469414,1717423840573,-500.0,0.00030682,4]
[328469416,1717423840582,-748.96,0.00030682,4]
[328469418,1717423840593,-500.0,0.00030682,4]
[328469420,1717423840602,-500.0,0.00030682,4]
[328469422,1717423840611,-500.0,0.00030682,4]
[328469423,1717423840620,-500.0,0.00030682,4]
[328469424,1717423840631,-616.01,0.00030682,4]
[328469425,1717423840641,-500.0,0.00030682,4]
[328469426,1717423840650,-500.0,0.00030682,4]
[328469427,1717423840659,-653.74,0.00030682,4]
[328469428,1717423840669,-233.62135471,0.00030682,4]
[328469429,1717423840678,-500.0,0.00030682,4]
[328469430,1717423840687,-1158.99,0.00030682,4]
[328469431,1717423840697,-500.0,0.00030682,4]
[328469432,1717423840706,-500.0,0.00030682,4]
[328469433,1717423840716,-500.0,0.00030682,4]
[328469434,1717423840725,-500.0,0.00030682,4]
[328469435,1717423840735,-802.19,0.00030682,4]
[328469436,1717423840744,-500.0,0.00030682,4]
[328469437,1717423840753,-500.0,0.00030682,4]
[328469438,1717423840762,-500.0,0.00030682,4]
[328469439,1717423840772,-500.0,0.00030682,4]
[328469440,1717423840782,-500.0,0.00030682,4]
[328469441,1717423840791,-500.0,0.00030682,4]
[328469442,1717423840800,-500.0,0.00030684,4]
[328469443,1717423840809,-500.0,0.00030684,4]
[328469444,1717423840819,-500.0,0.00030684,4]
[328469445,1717423840828,-500.0,0.00030684,4]
[328469446,1717423840838,-500.0,0.00030684,4]
[328469447,1717423840849,-500.0,0.00030684,4]
[328469448,1717423840858,-510.35935539,0.00030684,4]
[328469449,1717423840868,-500.0,0.00030684,4]
[328469450,1717423840878,-500.0,0.00030684,4]
[328469451,1717423840888,-537.12189631,0.00030684,4]
[328469452,1717423840898,-500.0,0.00030684,4]
[328469453,1717423840908,-1068.06,0.00030684,4]
[328469454,1717423840919,-500.0,0.00030684,4]
[328469455,1717423840929,-500.0,0.00030684,4]
[328469456,1717423840938,-500.0,0.00030684,4]
[328469457,1717423840948,-500.0,0.00030684,4]
[328469458,1717423840958,-627.55727767,0.00030684,4]
[328469459,1717423840967,-500.0,0.00030684,4]
[328469460,1717423840976,-500.0,0.00030684,4]
[328469461,1717423840986,-500.0,0.00030684,4]
[328469462,1717423840995,-500.0,0.00030684,4]
[328469463,1717423841006,-500.0,0.00030684,4]
[328469464,1717423841015,-500.0,0.00030684,4]
[328469465,1717423841024,-500.0,0.00030684,4]
[328469466,1717423841034,-500.0,0.00030684,4]
[328469467,1717423841043,-500.0,0.00030684,4]
[328469468,1717423841053,-500.0,0.00030684,4]
[328469469,1717423841062,-500.0,0.00030684,4]
[328469470,1717423841071,-500.0,0.00030684,4]
[328469471,1717423841081,-500.0,0.00030684,4]
[328469472,1717423841091,-500.0,0.00030684,4]
[328469473,1717423841100,-500.0,0.00030684,4]
[328469474,1717423841109,-500.0,0.00030684,4]
[328469475,1717423841119,-500.0,0.00030684,4]
[328469476,1717423841128,-521.15980072,0.00030684,4]
[328469477,1717423841138,-180.02888243,0.00030684,4]
[328469478,1717423841148,-500.0,0.00030684,4]
[328469479,1717423841157,-500.0,0.00030684,4]
[328469480,1717423841166,-500.0,0.00030684,4]
[328469481,1717423841176,-500.0,0.00030684,4]
[328469482,1717423841185,-500.0,0.00030684,4]
[328469483,1717423841194,-500.0,0.00030684,4]
[328469484,1717423841204,-500.0,0.00030684,4]
[328469485,1717423841214,-500.0,0.00030684,4]
[328469486,1717423841225,-565.36384902,0.00030684,4]
[328469487,1717423841234,-500.0,0.00030684,4]
[328469488,1717423841243,-500.0,0.00030684,4]
[328469489,1717423841254,-500.0,0.00030684,4]
[328469490,1717423841263,-500.0,0.00030684,4]
[328469491,1717423841272,-500.0,0.00030684,4]
[328469492,1717423841282,-500.0,0.00030684,4]
[328469493,1717423841292,-500.0,0.00030684,4]
[328469494,1717423841301,-500.0,0.00030684,4]
[328469495,1717423841310,-500.0,0.00030684,4]
[328469496,1717423841319,-500.0,0.00030684,4]
[328469497,1717423841329,-500.0,0.00030684,4]
[328469498,1717423841339,-500.0,0.00030684,4]
[328469499,1717423841348,-500.0,0.00030684,4]
[328469500,1717423841358,-500.0,0.00030684,4]
[328469501,1717423841367,-500.0,0.00030684,4]
[328469502,1717423841378,-500.0,0.00030684,4]
[328469503,1717423841388,-500.0,0.00030684,4]
[328469504,1717423841398,-500.0,0.00030684,4]
[328469505,1717423841407,-500.0,0.00030684,4]
[328469506,1717423841417,-500.0,0.00030684,4]
[328469507,1717423841426,-500.0,0.00030684,4]
[328469508,1717423841435,-918.28,0.00030684,4]
[328469509,1717423841444,-1370.83,0.00030684,4]
[328469510,1717423841453,-500.0,0.00030684,4]
[328469511,1717423841462,-500.0,0.00030684,4]
[328469512,1717423841472,-1000.18,0.00030684,4]
[328469513,1717423841480,-500.0,0.00030684,4]
[328469514,1717423841490,-2105.69,0.00030684,4]
[328469515,1717423841499,-500.0,0.00030684,4]
[328469516,1717423841508,-698.67,0.00030684,4]
[328469517,1717423841517,-898.54,0.00030684,4]
[328469518,1717423841528,-4890.79552146,0.00030684,4]
[328469519,1717423841747,-500.0,0.0003021,2]
[328469520,1717423841758,-500.0,0.0003041,4]
[328469521,1717423841768,-137.04447854,0.00030684,4]
[328469522,1717423841777,-108.48561213,0.00030684,4]
[328469523,1717423841789,-391.51438787,0.00030684,4]
[328469524,1717423841798,-500.0,0.00030684,4]
[328469525,1717423841808,-500.0,0.00030684,4]
[328469526,1717423841818,-500.0,0.00030684,4]
[328469527,1717423841828,-500.0,0.00030684,4]
[328469528,1717423841843,-178.2,0.00030684,4]
[328469529,1717423841853,-194.83099749,0.00030684,4]
[328469530,1717423841864,-305.16900251,0.00030684,4]
[328469531,1717423841875,-500.0,0.00030684,4]
[328469532,1717423841887,-500.0,0.00030684,4]
[328469533,1717423841896,-500.0,0.00030684,4]
[328469534,1717423841908,-579.23,0.00030684,4]
[328469535,1717423841918,-500.0,0.00030684,4]
[328469536,1717423841927,-500.0,0.00030684,4]
[328469537,1717423841937,-550.91,0.00030684,4]
[328469538,1717423841946,-500.0,0.00030684,4]
[328469539,1717423841955,-500.0,0.00030684,4]
[328469540,1717423841965,-203.51699749,0.00030684,4]
[328469541,1717423841977,-296.48300251,0.00030684,4]
[328469542,1717423842098,-256.8921434,0.00030684,4]
[328469543,1717423842111,-243.1078566,0.00030684,4]
[328469544,1717423842121,-500.0,0.00030684,4]
[328469545,1717423842134,-500.0,0.00030684,4]
[328469546,1717423842144,-500.0,0.00030684,4]
[328469547,1717423842153,-500.0,0.00030684,4]
[328469548,1717423842162,-500.0,0.00030684,4]
[328469549,1717423842172,-500.0,0.00030684,4]
[328469550,1717423842186,-618.53,0.00030684,4]
[328469551,1717423842196,-598.01,0.00030684,4]
[328469552,1717423842206,-4233.41,0.00030684,4]
[328469553,1717423842215,-485.36,0.00030684,4]
[328469554,1717423842225,-500.0,0.00030684,4]
[328469555,1717423842234,-500.0,0.00030684,4]
[328469556,1717423842244,-500.0,0.00030684,4]
[328469557,1717423842253,-500.0,0.00030684,4]
[328469558,1717423842262,-500.0,0.00030684,4]
[328469559,1717423842272,-500.0,0.00030684,4]
[328469560,1717423842282,-500.0,0.00030684,4]
[328469561,1717423842292,-500.0,0.00030684,4]
[328469562,1717423842302,-500.0,0.00030684,4]
[328469563,1717423842311,-500.0,0.00030684,4]
[328469564,1717423842321,-500.0,0.00030684,4]
[328469565,1717423842330,-500.0,0.00030684,4]
[328469566,1717423842340,-523.72,0.00030684,4]
[328469567,1717423842350,-500.0,0.00030684,4]
[328469568,1717423842359,-303.01046065,0.00030706,2]
[328469569,1717423842369,-1176.68345313,0.00030721,2]
[328469570,1717423842378,-157.44336949,0.00030725,7]
[328469571,1717423842389,-1216.31301935,0.00030739,15]
[328469572,1717423842398,-1535.99782312,0.00030739,15]
[328469573,1717423842408,-152.656571,0.00030779,2]
[328469574,1717423842417,-300.0,0.000308,11]
[328469575,1717423842426,-2138.2652,0.0003083,2]
[328469576,1717423842436,-700.0,0.00030834,10]
[328469577,1717423842446,-150.79906213,0.00030838,7]
[328469578,1717423842456,-600.0,0.000309,11]
[328469579,1717423842465,-1000.0,0.000309,2]
[328469580,1717423842475,-464.91525797,0.00030956,4]
[328469581,1717423842484,-500.0,0.00030956,4]
[328469582,1717423842494,-500.0,0.00030956,4]
[328469583,1717423842503,-500.0,0.00030956,4]
[328469584,1717423842513,-307.3990458,0.00030956,4]
[328469585,1717423842523,-500.0,0.00030956,4]
[328469586,1717423842532,-500.0,0.00030956,4]
[328469587,1717423842542,-516.08109522,0.00030956,4]
[328469588,1717423842551,-165.4,0.00030956,4]
[328469589,1717423842561,-500.0,0.00030956,4]
[328469590,1717423842571,-500.0,0.00030956,4]
[328469591,1717423842580,-500.0,0.00030956,4]
[328469592,1717423842590,-500.0,0.00030956,4]
[328469593,1717423842600,-500.0,0.00030956,4]
[328469594,1717423842610,-215.45747535,0.00030956,4]
[328469595,1717423842620,-500.0,0.00030956,4]
[328469596,1717423842632,-500.0,0.00030956,4]
[328469598,1717423842642,-500.0,0.00030956,4]
[328469599,1717423842651,-263.0,0.00030956,4]
[328469601,1717423842660,-500.0,0.00030956,4]
[328469602,1717423842669,-517.14828647,0.00030956,4]
[328469604,1717423842679,-500.0,0.00030956,4]
[328469606,1717423842688,-500.0,0.00030956,4]
[328469608,1717423842698,-757.65,0.00030956,4]
[328469609,1717423842707,-500.0,0.00030956,4]
[328469610,1717423842717,-500.0,0.00030956,4]
[328469612,1717423842726,-874.8,0.00030956,4]
[328469613,1717423842736,-500.0,0.00030956,4]
[328469615,1717423842745,-500.0,0.00030956,4]
[328469617,1717423842755,-840.86,0.00030956,4]
[328469618,1717423842764,-500.0,0.00030956,4]
[328469619,1717423842774,-500.0,0.00030956,4]
[328469620,1717423842783,-500.0,0.00030956,4]
[328469621,1717423842793,-500.0,0.00030956,4]
[328469622,1717423842803,-500.0,0.00030956,4]
[328469623,1717423842813,-500.0,0.00030956,4]
[328469624,1717423842823,-500.0,0.00030956,4]
[328469625,1717423842834,-500.0,0.00030956,4]
[328469628,1717423842848,-500.0,0.00030956,4]
[328469629,1717423842858,-500.0,0.00030956,4]
[328469631,1717423842867,-500.0,0.00030956,4]
[328469634,1717423842876,-500.0,0.00030956,4]
[328469636,1717423842889,-500.0,0.00030956,4]
[328469639,1717423842899,-500.0,0.00030956,4]
[328469642,1717423842909,-500.0,0.00030956,4]
[328469645,1717423842922,-500.0,0.00030956,4]
[328469648,1717423842932,-500.0,0.00030956,4]
[328469650,1717423842942,-257.14974073,0.00030956,4]
[328469652,1717423842952,-500.0,0.00030956,4]
[328469654,1717423842962,-500.0,0.00030956,4]
[328469656,1717423842971,-500.0,0.00030956,4]
[328469658,1717423842981,-500.0,0.00030956,4]
[328469660,1717423842990,-500.0,0.00030956,4]
[328469662,1717423843000,-500.0,0.00030956,4]
[328469663,1717423843009,-500.0,0.00030956,4]
[328469664,1717423843018,-500.0,0.00030956,4]
[328469665,1717423843027,-588.11,0.00030956,4]
[328469666,1717423843037,-500.0,0.00030956,4]
[328469667,1717423843046,-500.0,0.00030956,4]
[328469668,1717423843056,-500.0,0.00030956,4]
[328469669,1717423843065,-516.13,0.00030956,4]
[328469670,1717423843074,-529.46,0.00030956,4]
[328469671,1717423843083,-500.0,0.00030956,4]
[328469672,1717423843093,-545.44213843,0.00030956,4]
[328469673,1717423843102,-500.0,0.00030956,4]
[328469674,1717423843110,-500.0,0.00030956,4]
[328469675,1717423843119,-500.0,0.00030956,4]
[328469676,1717423843128,-606.72,0.00030956,4]
[328469677,1717423843139,-500.0,0.00030956,4]
[328469678,1717423843148,-519.1,0.00030956,4]
[328469679,1717423843158,-500.0,0.00030956,4]
[328469680,1717423843167,-4664.69,0.00030956,4]
[328469681,1717423843176,-877.52,0.00030956,4]
[328469682,1717423843185,-500.0,0.00030956,4]
[328469683,1717423843196,-500.0,0.00030956,4]
[328469684,1717423843205,-881.93,0.00030956,4]
[328469685,1717423843215,-515.16139783,0.00030956,4]
[328469686,1717423843224,-512.78,0.00030956,4]
[328469687,1717423843233,-500.0,0.00030956,4]
[328469688,1717423843243,-500.0,0.00030956,4]
[328469689,1717423843252,-500.0,0.00030956,4]
[328469690,1717423843261,-500.0,0.00030956,4]
[328469691,1717423843270,-304.79659021,0.00030956,4]
[328469692,1717423843280,-500.0,0.00030956,4]
[328469693,1717423843289,-504.37,0.00030956,4]
[328469694,1717423843299,-2125.65,0.00030956,4]
[328469695,1717423843309,-646.92323588,0.00030956,4]
[328469696,1717423843318,-542.95,0.00030956,4]
[328469697,1717423843328,-500.0,0.00030956,4]
[328469698,1717423843338,-500.0,0.00030956,4]
[328469699,1717423843346,-507.95561505,0.00030956,4]
[328469700,1717423843356,-500.0,0.00030956,4]
[328469701,1717423843365,-630.75,0.00030956,4]
[328469702,1717423843375,-525.61,0.00030956,4]
[328469703,1717423843387,-500.0,0.00030956,4]
[328469704,1717423843398,-500.0,0.00030956,4]
[328469705,1717423843407,-217.96346019,0.00030956,4]
[328469706,1717423843417,-500.0,0.00030956,4]
[328469707,1717423843427,-500.0,0.00030956,4]
[328469708,1717423843436,-500.0,0.00030956,4]
[328469709,1717423843446,-500.0,0.00030956,4]
[328469710,1717423843455,-192.89593641,0.00030956,4]
[328469711,1717423843464,-500.0,0.00030956,4]
[328469712,1717423843474,-500.0,0.00030956,4]
[328469713,1717423843483,-500.0,0.00030956,4]
[328469714,1717423843493,-615.13,0.00030956,4]
[328469715,1717423843502,-500.0,0.00030956,4]
[328469716,1717423843512,-784.39,0.00030956,4]
[328469717,1717423843522,-500.0,0.00030956,4]
[328469718,1717423843532,-211.334701,0.00030956,7]
[328469719,1717423843541,-748.96,0.00030956,4]
[328469720,1717423843550,-155.613082,0.00030956,7]
[328469721,1717423843559,-500.0,0.00030956,4]
[328469722,1717423843568,-211.334701,0.00030956,7]
[328469723,1717423843578,-173.6549,0.00030956,7]
[328469724,1717423843588,-500.0,0.00030956,4]
[328469725,1717423843597,-500.0,0.00030956,4]
[328469726,1717423843607,-151.0,0.00030956,7]
[328469727,1717423843617,-227.542335,0.00030956,7]
[328469728,1717423843627,-500.0,0.00030956,4]
[328469730,1717423843639,-616.01,0.00030956,4]
[328469732,1717423843648,-500.0,0.00030956,4]
[328469734,1717423843658,-500.0,0.00030956,4]
[328469736,1717423843668,-653.74,0.00030956,4]
[328469738,1717423843678,-500.0,0.00030956,4]
[328469740,1717423843688,-1158.99,0.00030956,4]
[328469742,1717423843698,-500.0,0.00030956,4]
[328469744,1717423843707,-500.0,0.00030956,4]
[328469746,1717423843718,-500.0,0.00030956,4]
[328469748,1717423843727,-500.0,0.00030956,4]
[328469759,1717423843737,-802.19,0.00030956,4]
[328469761,1717423843844,-500.0,0.00030956,4]
[328469763,1717423843854,-500.0,0.00030956,4]
[328469765,1717423843863,-500.0,0.00030956,4]
[328469767,1717423843875,-500.0,0.00030956,4]
[328469770,1717423843886,-500.0,0.00030956,4]
[328469771,1717423843895,-500.0,0.00030956,4]
[328469773,1717423843904,-500.0,0.00030957,4]
[328469775,1717423843913,-500.0,0.00030958,4]
[328469777,1717423843922,-500.0,0.00030958,4]
[328469779,1717423843932,-500.0,0.00030958,4]
[328469781,1717423843941,-500.0,0.00030958,4]
[328469783,1717423843950,-319.71315944,0.00030958,4]
[328469784,1717423843960,-500.0,0.00030958,4]
[328469785,1717423843969,-448.5,0.00030958,4]
[328469786,1717423843979,-1068.06,0.00030958,4]
[328469787,1717423843988,-500.0,0.00030958,4]
[328469788,1717423843997,-500.0,0.00030958,4]
[328469789,1717423844006,-500.0,0.00030958,4]
[328469790,1717423844015,-500.0,0.00030958,4]
[328469791,1717423844025,-500.0,0.00030958,4]
[328469792,1717423844034,-500.0,0.00030958,4]
[328469793,1717423844044,-500.0,0.00030958,4]
[328469794,1717423844053,-500.0,0.00030958,4]
[328469795,1717423844063,-425.69555425,0.00030958,4]
[328469796,1717423844073,-500.0,0.00030958,4]
[328469797,1717423844082,-500.0,0.00030958,4]
[328469798,1717423844091,-500.0,0.00030958,4]
[328469799,1717423844101,-500.0,0.00030958,4]